Cogmind - Beta 13 @@@ ROGUE MODE // 2024.04.11 @ 15:14:13 Player: TiredKraken Result: Destroyed by G-47 Trooper with Particle Gun Performance ------------- Evolutions (2) 1000 Regions Visited (4) 800 Robots Destroyed (33) 165 Value Destroyed (972) 972 Prototype IDs (4) 80 Alien Tech Used (0) 0 Bonus (0) 0 TOTAL SCORE: 3017 Bonus ------- None Cogmind --------- Core Integrity 0/550 Matter 280/300 Energy 85/100 System Corruption 0% Temperature Cool (10) Movement Flying (45) Location -8/Materials Parts ------- > --- POWER (2) -------- (None) > --- PROPULSION (2) --- Carbon-fiber Leg Cesium-ion Thruster > --- UTILITY (5) ------ Melee Analysis Suite > --- WEAPON (2) ------- (None) > --- INVENTORY (5) ---- (None) Peak State ------------ > --- POWER ------------ Subdweller Power Source > --- PROPULSION ------- Carbon-fiber Leg Carbon-fiber Leg > --- UTILITY ---------- Improved Terrain Scanner Melee Analysis Suite Particle Charger Scrap Shield > --- WEAPON ----------- Subdweller Laser Heavy Battle Rifle > --- INVENTORY -------- Cesium-ion Thruster Improved Datajack Mining Laser [Rating: 27] Favorites ----------- Power Ion Engine Engine Ion Engine Power Core Light Nuclear Core Propulsion Light Treads Treads Light Treads Leg Carbon-fiber Leg Flight Unit Cesium-ion Thruster Utility Improved Targeting Computer Device Particle Charger Storage High-capacity Matter Pod Processor Improved Targeting Computer Hackware Makeshift Hacking Suite Protection Scrap Shield Weapon Assault Rifle Energy Gun Subdweller Laser Ballistic Gun Assault Rifle Special Weapon Mining Laser Special Melee Weapon Improved Datajack Build | -11 -10 -10 -10 -8 ------- Run | Yrd Mat Min Sub Mat Slots Evolved 4 | . . . . 4 Power 1 | . . . . 1 Propulsion . | . . . . . Utility 3 | . . . . 3 Weapon . | . . . . . Parts Attached 44 | 6 11 1 15 11 Power 5 | 1 2 . 1 1 Engine 4 | 1 2 . 1 . Core 1 | . . . . 1 Reactor . | . . . . . Propulsion 10 | 2 2 . 2 4 Treads 4 | 2 2 . . . Leg 5 | . . . 2 3 Wheel . | . . . . . Hover . | . . . . . Flight 1 | . . . . 1 Utility 12 | . 5 . 4 3 Device 2 | . . . . 2 Storage 3 | . 2 . 1 . Processor 3 | . 2 . . 1 Hackware 1 | . . . 1 . Protection 3 | . 1 . 2 . Artifact . | . . . . . Weapon 17 | 3 2 1 8 3 Energy Gun 2 | . . . 1 1 Energy Cannon . | . . . . . Ballistic Gun 9 | 3 2 . 4 . Ballistic Cannon . | . . . . . Launcher . | . . . . . Special Weapon 5 | . . 1 3 1 Impact Weapon . | . . . . . Slashing Weapon . | . . . . . Piercing Weapon . | . . . . . Special Melee Weapon 1 | . . . . 1 Unidentified Prototypes . | . . . . . Parts Lost 13 | . 1 . . 12 Power 3 | . 1 . . 2 Propulsion 3 | . . . . 3 Utility 3 | . . . . 3 Weapon 4 | . . . . 4 Highest Loss Streak 6 | . 1 . . 6 To Critical Strikes . | . . . . . Average Slot Usage (%) 88 | . 90 100 86 56 Engine 10 | . 7 14 14 6 Treads 19 | . 27 28 2 . Leg 7 | . . . 24 15 Storage 8 | . 8 14 5 . Processor 9 | . 12 14 . 8 Protection 4 | . 4 . 8 5 Energy Gun 1 | . . . 3 4 Ballistic Gun 22 | . 27 26 13 7 Special Weapon 3 | . . 1 10 1 Naked Turns . | . . . . . Heaviest Build 35 | 7 27 14 28 35 Greatest Support 40 | 40 40 40 40 30 Greatest Overweight (x) 1 | . . . . 1 Average Overweight (x) . | . . . . . Largest Inventory Capacity 15 | 5 15 5 5 5 Average Capacity 6 | 5 8 5 5 5 Most Carried 5 | 2 1 5 5 5 Average Carried 1 | . . 4 1 2 Final Capacity 5 | 5 5 5 5 5 Final Carried 1 | . . 1 1 . Class Distribution -------------------- 90% | Mutant 9% | Subdweller-Mutant Dominant Class ---------------- Mutant | -10/Materials Mutant | -10/Mines Mutant | -10/Subcaves Mutant | -8/Materials Resources | -11 -10 -10 -10 -8 ----------- Run | Yrd Mat Min Sub Mat Matter Collected 1426 | 210 625 176 297 118 Remotely . | . . . . . Salvage Created 1080 | . 633 78 198 171 Parts 69 | . 43 . 19 7 Haulers Intercepted . | . . . . . Recyclers Shooed . | . . . . . Parts Field Recycled . | . . . . . Retrieved Matter . | . . . . . Parts Self-Destructed . | . . . . . Prevented . | . . . . . Kills | -11 -10 -10 -10 -8 ------- Run | Yrd Mat Min Sub Mat Combat Hostiles Destroyed 27 | . 16 2 5 4 Guns 27 | . 16 2 5 4 Classes Destroyed 6 | . 5 . 1 . Worker 2 | . 2 . . . Operator 1 | . 1 . . . Watcher 3 | . 3 . . . Swarmer 5 | . 5 . . . Grunt 17 | . 11 2 . 4 Subdweller 5 | . . . 5 . Best Kill Streak 5 | . 5 1 3 3 Combat Bots Only 3 | . 3 1 3 3 Max Kills in Single Turn 2 | . 2 1 1 1 Gunslinging . | . . . . . Exploded . | . . . . . Melee . | . . . . . Uniques/NPCs Destroyed . | . . . . . Combat | -11 -10 -10 -10 -8 -------- Run | Yrd Mat Min Sub Mat Hostile Shots Fired 228 | . 87 19 16 106 Missed 57 | . 31 7 3 16 Damage Taken 2554 | . 580 205 286 1483 Core 749 | . 142 42 . 565 Absorbed by Shields . | . . . . . Redirected to Shielding 24 | . 24 . . . Regen/Repaired (Parts) 291 | . 291 . . . Core Remaining (%) 63 | 100 . . 26 . Volleys Fired 176 | 1 65 29 48 33 Largest 2 | 2 2 2 2 2 Hottest 133 | 40 43 100 133 100 Shots Fired 286 | 2 130 43 67 44 Gun 237 | 2 130 28 35 42 Cannon . | . . . . . Launcher . | . . . . . Special 49 | . . 15 32 2 Kinetic 219 | 2 130 28 28 31 Thermal 67 | . . 15 39 13 Explosive . | . . . . . Electromagnetic . | . . . . . Robot Hit Streak 15 | 1 12 15 12 14 Robot Miss Streak 5 | 1 5 1 3 4 Penetration Max . | . . . . . Secondary Targets 4 | . 2 . 2 . Max Gunslinging Chain 1 | . 1 . 1 . Shots Hit Robots 157 | 1 72 23 28 33 Core Hits 66 | . 36 5 10 15 Critical Kills . | . . . . . Critical Parts Destroyed . | . . . . . Critical Strikes . | . . . . . Melee Attacks 5 | . . . . 5 Impact . | . . . . . Slashing . | . . . . . Piercing . | . . . . . Sneak Attacks . | . . . . . Combat Hostiles . | . . . . . Follow-up Attacks . | . . . . . Damage Inflicted 2446 | 13 1001 342 466 624 Guns 2364 | 13 1001 342 418 590 Cannons . | . . . . . Explosions . | . . . . . Melee . | . . . . . Ramming 34 | . . . . 34 Kinetic 2128 | 13 1001 342 323 449 Thermal 284 | . . . 143 141 Explosive . | . . . . . Electromagnetic . | . . . . . Impact . | . . . . . Slashing . | . . . . . Piercing . | . . . . . Highest Corruption . | . . . . . Average Corruption . | . . . . . Corruption Purged . | . . . . . Corruption Blocked . | . . . . . Overload Shots . | . . . . . Overflow Damage . | . . . . . Projectiles . | . . . . . Explosions . | . . . . . Melee . | . . . . . Knockbacks . | . . . . . Impact . | . . . . . Kinetic . | . . . . . Secondary . | . . . . . Self-Inflicted Damage 10 | . . . . 10 Shots . | . . . . . Rammed 7 | . . . . 7 Targets Rammed 21 | . . . . 21 Kicked 14 | . . . . 14 Crushed . | . . . . . Highest Temperature 111 | . 9 90 . 111 Average Temperature 39 | . 4 28 . 56 Received Heat Transfer 1323 | . 249 132 60 882 Siege Activations . | . . . . . Robots Corrupted . | . . . . . Combat Hostiles . | . . . . . Parts Fried . | . . . . . Impact Corruptions . | . . . . . Robots Melted . | . . . . . Combat Hostiles . | . . . . . Parts Melted . | . . . . . Heat Transferred 400 | . . . 225 175 Parts Sabotaged . | . . . . . Parts Stolen . | . . . . . Parts Stripped . | . . . . . Power Chain Reactions . | . . . . . Alert | -11 -10 -10 -10 -8 ------- Run | Yrd Mat Min Sub Mat Peak Influence 286 | . 286 80 . 80 Initial . | . . . . . Average 52 | . 68 25 . 40 Maximum Alert Level 1 | . 1 . . . Low Security (%) 97 | 100 96 100 . 100 Level 1 2 | . 3 . . . Level 2 . | . . . . . Level 3 . | . . . . . Level 4 . | . . . . . Level 5 . | . . . . . High Security . | . . . . . Max Security . | . . . . . Squads Dispatched 9 | . 5 . . 4 Investigation 6 | . 3 . . 3 Extermination . | . . . . . Reinforcement 3 | . 2 . . 1 Assault . | . . . . . Garrison . | . . . . . Intercept . | . . . . . Searches Triggered . | . . . . . Construction Impeded . | . . . . . Haulers Reinforced . | . . . . . Active Scanning Responses . | . . . . . Cargo Convoy Interrupts . | . . . . . Stealth | -11 -10 -10 -10 -8 --------- Run | Yrd Mat Min Sub Mat Distress Signals 1 | . 1 . . . Communications Jammed . | . . . . . Distress Signals . | . . . . . Times Spotted 58 | . 30 5 11 12 Peak Tracking Total 8 | . 4 2 8 6 Tactical Retreats 2 | . . 1 . 1 Traps | -11 -10 -10 -10 -8 ------- Run | Yrd Mat Min Sub Mat Traps Triggered 1 | . . . . 1 Indirectly . | . . . . . Trap Hack Attempts . | . . . . . Triggered . | . . . . . Disarmed . | . . . . . Reprogrammed . | . . . . . Reused . | . . . . . Traps Extracted . | . . . . . Installed . | . . . . . Triggered . | . . . . . Most Traps Carried 5 | . . 5 . . Machines | -11 -10 -10 -10 -8 ---------- Run | Yrd Mat Min Sub Mat Machines Disabled . | . . . . . Max in Single Turn . | . . . . . Machines Repaired . | . . . . . Machines Dismantled . | . . . . . Machines Sabotaged . | . . . . . Overloaded Fab Kills . | . . . . . Hacking | -11 -10 -10 -10 -8 --------- Run | Yrd Mat Min Sub Mat Machines Accessed 10 | . 6 . 1 3 Terminals 7 | . 4 . . 3 Fabricators . | . . . . . Repair Stations 1 | . 1 . . . Recycling Units 1 | . 1 . . . Scanalyzers . | . . . . . Garrison Access . | . . . . . Total Hacks 50 | . 26 . 2 22 Successful 27 | . 14 . 2 11 Failed 23 | . 12 . . 11 Catastrophic 1 | . 1 . . . Database Lockouts . | . . . . . Manual 4 | . . . 4 . Terminals 35 | . 13 . . 22 Fabricators . | . . . . . Repair Stations 10 | . 10 . . . Recycling Units 3 | . 3 . . . Scanalyzers . | . . . . . Garrison Access . | . . . . . Terminal Hacks 18 | . 5 . 2 11 Record 7 | . 1 . 2 4 Robot Analysis 1 | . 1 . . . Prototype ID Bank 2 | . . . . 2 Alert Level 2 | . . . . 2 Locate Traps 1 | . 1 . . . Dispatch Records 2 | . 1 . . 1 Hauler Manifests 1 | . 1 . . . Registered Prototypes 1 | . . . . 1 Zone Layout 1 | . . . . 1 Fabricator Hacks . | . . . . . Repair Station Hacks 8 | . 8 . . . Scan Component 4 | . 4 . . . Repair 4 | . 4 . . . Recycling Unit Hacks 1 | . 1 . . . Report Inventory 1 | . 1 . . . Scanalyzer . | . . . . . Garrison Access Hacks . | . . . . . Unauthorized Hacks . | . . . . . Terminals . | . . . . . Fabricators . | . . . . . Repair Stations . | . . . . . Recycling Units . | . . . . . Scanalyzers . | . . . . . Garrison Access . | . . . . . Data Cores Recovered . | . . . . . Used . | . . . . . Hacking Detections 9 | . 6 . . 3 Full Trace Events 7 | . 5 . . 2 Feedback Events . | . . . . . Feedback Blocked . | . . . . . Robot Schematics Acquired . | . . . . . Robots Built . | . . . . . Authchips . | . . . . . Time . | . . . . . Total Robot Build Rating . | . . . . . Part Schematics Acquired . | . . . . . Parts Built . | . . . . . Authchips . | . . . . . Time . | . . . . . Total Part Build Rating . | . . . . . Parts Repaired 4 | . 4 . . . Time 104 | . 104 . . . Parts Recycled . | . . . . . Recycled Matter . | . . . . . Retrieved Matter . | . . . . . Retrieved Components . | . . . . . Parts Scanalyzed . | . . . . . Part Schematics Acquired . | . . . . . Parts Damaged . | . . . . . Bothacking | -11 -10 -10 -10 -8 ------------ Run | Yrd Mat Min Sub Mat Used RIF Installer . | . . . . . Robots Hacked 1 | . . . . 1 Non-combat . | . . . . . Combat 1 | . . . . 1 Robot Hacks Applied 2 | . . . . 2 parse_system 2 | . . . . 2 Relay Couplers Released . | . . . . . Fabnet Peak Effective % . | . . . . . Robots Rewired . | . . . . . Allies Hacked . | . . . . . Hacks Repelled . | . . . . . Allies | -11 -10 -10 -10 -8 -------- Run | Yrd Mat Min Sub Mat Total Allies 1 | . . 1 . . Largest Group 1 | . . 1 1 . Highest-Rated Group 31 | . . 31 31 . Highest-Rated Ally 31 | . . 31 31 . Total Orders . | . . . . . Ally Attacks 4 | . . . 4 . Total Damage 84 | . . . 84 . Kills . | . . . . . Allies Corrupted . | . . . . . Allies Melted . | . . . . . Intel | -11 -10 -10 -10 -8 ------- Run | Yrd Mat Min Sub Mat Robot Analysis Total 1 | . 1 . . . Derelict Logs Recovered 2 | . . 1 1 . Drone Launches . | . . . . . Drone Recoveries . | . . . . . Exploration | -11 -10 -10 -10 -8 ------------- Run | Yrd Mat Min Sub Mat Turns Passed 4651 | 65 2114 942 1170 360 Spaces Moved 2582 | 44 1100 512 762 164 Core 29 | 18 . . . 11 Treads 1698 | 26 1100 512 60 . Legs 848 | . . . 702 146 Wheels . | . . . . . Hover . | . . . . . Flight 7 | . . . . 7 Fastest Speed 45 | 50 160 160 120 45 Average Speed 147 | 115 160 160 123 139 Slowest Speed 190 | 160 160 160 160 190 Overloaded Moves . | . . . . . Propulsion Burnouts . | . . . . . Robots Hopped . | . . . . . Cave-ins Triggered . | . . . . . Exploration Rate (%) 43 | 3 94 81 29 11 Regions Visited 4 Branch Regions 2 Pre-discovered Areas 3 | . . 1 2 . Known Exits Taken . | . . . . . Unknown Exits Taken 4 | 1 1 1 1 . Scrap Searched 2 | . . . 2 . Spaces Dug 2 | . . 2 . . Terrain Destroyed 6 | . . 3 . 3 Melee . | . . . . . Projectile 6 | . . 3 . 3 AOE . | . . . . . Terrain Rammed . | . . . . . Walls Destroyed . | . . . . . Machines Disabled . | . . . . . Actions | -11 -10 -10 -10 -8 --------- Run | Yrd Mat Min Sub Mat Total 3067 | 57 1326 565 874 245 Wait 162 | . 136 12 13 1 Move 2578 | 43 1099 511 761 164 Hop . | . . . . . Pick Up 44 | 6 11 6 13 8 Fast Attach . | . . . . . Attach 44 | 6 11 1 15 11 Detach 10 | . . 1 7 2 Swap . | . . . . . Drop 23 | 1 4 5 13 . Fire 176 | 1 65 29 48 33 Melee 5 | . . . . 5 Ram 7 | . . . . 7 Kick 14 | . . . . 14 Crush . | . . . . . Escape Stasis . | . . . . . Rewire . | . . . . . Trap . | . . . . . Miscellaneous 4 | . . . 4 . Route ------- -11/Scrapyard -10/Materials (discovered 3 exits: [*Mat x2] / [*Min]) -10/Mines (discovered 3 exits: [*Mat x2] / *Sub) -10/Subcaves -8/Materials History --------- Turn | Location | Event 4 | -11/Scrapyard | Discovered new exit (range 15) 66 | -11/Scrapyard | Entered Materials 304 | -10/Materials | Build established: Mutant 816 | -10/Materials | Discovered new exit (range 11) 1174 | -10/Materials | Discovered new exit (range 15) 1327 | -10/Materials | Discovered new exit (range 16) 1533 | -10/Materials | Core integrity fell below 50% 1766 | -10/Materials | Repaired Assault Rifle 1794 | -10/Materials | Repaired Lgt. Treads 1823 | -10/Materials | Repaired Lgt. Treads 1851 | -10/Materials | Repaired Ion Engine 2180 | -10/Materials | Entered Mines 2224 | -10/Mines | Joined a pair of Derelicts in attacking an 0b10 outpost 2271 | -10/Mines | Found a hidden stash of uninstalled traps 2682 | -10/Mines | Discovered new exit (range 11) 2744 | -10/Mines | Learned location of Mines (-8) 2947 | -10/Mines | Discovered new exit (range 5) 3017 | -10/Mines | Received a Mining Laser from a helpful Derelict 3069 | -10/Mines | Discovered new exit (range 3) 3122 | -10/Mines | Entered Subcaves 3122 | -10/Subcaves | Accompanied by 1 ally 3132 | -10/Subcaves | Learned location of Storage (-9) 3195 | -10/Subcaves | Ambushed by swarm of Subdwellers 3239 | -10/Subcaves | Lost 4 allies 3298 | -10/Subcaves | Shifting Twisted Machinery released Hvy. Battle Rifle 3525 | -10/Subcaves | Shifting Twisted Machinery released Sub. Beam Cannon 3611 | -10/Subcaves | Learned location of Zion (-7) 3611 | -10/Subcaves | Met a Zionite searching for "candidates" 3684 | -10/Subcaves | Visited Clippyterm 3692 | -10/Subcaves | Learned Research security intel 3914 | -10/Subcaves | Disturbed a concealed Subdweller 4260 | -10/Subcaves | Discovered new exit (range 4) 4292 | -10/Subcaves | Entered Materials 4292 | -8/Materials | Evolved 4 slots: Power x1, Utility x3 4568 | -8/Materials | Lost 6 parts (1p1n3u1w) 4629 | -8/Materials | Core integrity fell below 50% 4641 | -8/Materials | Core integrity fell below 20% 4652 | -8/Materials | Destroyed by G-47 Trooper with Particle Gun Last Messages --------------- M-28 Smith repairs G-50 Soldier. U-05 Engineer builds a Wall. Kicked G-47 Trooper. Critical hit (Burn: +37). Kicked G-47 Trooper. Kicked G-47 Trooper out of the way. Acquired 4 matter. Kicked G-47 Trooper out of the way. Kicked G-47 Trooper. Aluminum Leg destroyed. Kicked G-47 Trooper. Kicked G-47 Trooper out of the way. Kicked G-50 Soldier out of the way. Aluminum Leg destroyed. Slammed into G-50 Soldier. Imp. Datajack destroyed. Slammed into G-50 Soldier. Critical hit (Burn: +37). Slammed into G-50 Soldier. Destabilizing: Core damaged (-16). Map ----- +----------------------------------------------------+ | ????????????????????????????????????????######### | | ????????????????????????????????????????????????# | | ????????????????????????????????????????????????# | | ????????????????????????????????????????????????# | | ?????????????????????????????????????????######## | | ?????????????????????????????????????????# # | | ?????????????????????????????????????????# # | | ?????????????????????????????????????????# """ + | | ?????????????????????????????????????????# """ # | | ?????????????????????????????????????????# """ # | | ?????????????????????????????????????????# # | | ????????????????????????????????????????######### | | ?????????????????????????#?????????????? ## | | ???????????????????????????????????????? ## | | ???????????????????#???????????????????? ## | | ???????????????????#????"??"????????????"" """ ## | | ??????????????????? ?????????"? ????????"" """ ## | | ??????????????????????+?????????????????"" """ ## | | ????????????????????????"???????????????##+##### | | ?????????????????#????????????????#?????# | | ???????????????????? ???? ??????????????# | | ????????????? ??????????????????????????# | | ???????????????????# ########################### | | ???????????????????# #??##### | | ??????????????????#?######### % #??# | | ?????????????????????# @g # %%%%% #### | | ?????????????????????# "T"g g % %%% / | | ??????????????? ?????# a g #######+########## | | ?????????????????????# g #?# ##???# """ | | ??????????????#??#???# #?# ##???# """ | | ????????????#??##????# #?# "T" #????# """ | | ??????????????????##?########?# """ #????# | | ????????????????????#?????????###########?????#### | | | | | | | | | | | | | | | | | | | | | | | | | | | | | | | | | | | +----------------------------------------------------+ Best States ------------- Heat Dissipation 31 Energy Generation 15 Energy Capacity 250 Matter Stores 500 Matter Capacity 500 Sight Range 16 Terrain Scan Range 16 Terrain Scan Density 10 Armor Coverage 800 Propulsion Shielding 33 Evasion (%) 61 Targeting Accuracy 6 Melee Accuracy 5 Recoil Reduction 2 Particle Charging 15 Offensive Hacking 11 Item Schematics ----------------- None Robot Schematics ------------------ None Fabricated ------------ Nothing Alien Tech Used ----------------- None Achievements -------------- Crack Shot Challenges ------------ None Game ------ Seed WarpLinearSword Manual? 0 Play Time 00:42:21 Cumulative 1.7 hours Start 2024.04.11 @ 14:32:24 End 2024.04.11 @ 15:14:13 Sessions 1 Manual Loads 0 Difficulty Rogue Special Mode None Game No. 3 Rogue 3 Adventurer 0 Explorer 0 Win Type - Total 0 Types 0/0/0/0/0/0/0/0/0 Lore% 2 Gallery% 6 Achievement% 4 Wizard Run 0 Options --------- Layout 1 ASCII 0 Keyboard 0 Movement Mouse Keybinds 0 Fullscreen 1 Font 32/SmallcapsGlow Map View 50x35 Zoom Use 0% Tactical HUD 0 Map Filters NONE Filters NONE Steam 1 RUN: f5074ae6-4c6d-45d7-8a4b-bee91e7db098